Cogmind - Beta 17 @@@ ROGUE MODE // 2026.07.10 @ 14:40:44 Player: Cinder Result: Destroyed self with EMP Blaster Performance ------------- Evolutions (0) 0 Regions Visited (4) 800 Robots Destroyed (33) 165 Value Destroyed (548) 548 Prototype IDs (0) 0 Alien Tech Used (0) 0 Bonus (25) 25 TOTAL SCORE: 1538 Bonus ------- Follower Combat Kills 25 Cogmind --------- Core Integrity 0/250 Matter 292/300 Energy 20/100 System Corruption 10% Temperature Cool (0) Movement Rolling (110) Ox2 Location -9/Mines Parts ------- > --- POWER (1) -------- (None) > --- PROPULSION (2) --- Wheel Wheel > --- UTILITY (2) ------ High-capacity Storage Unit Shield Generator > --- WEAPON (2) ------- EMP Blaster > --- INVENTORY (20) --- Ion Engine Light Ion Engine Heat Sink Large Matter Pod (150) Visual Processing Unit Seismic Detector EMP Blaster Peak State ------------ > --- POWER ------------ Ion Engine > --- PROPULSION ------- Wheel Wheel > --- UTILITY ---------- Large Storage Unit Hacking Suite > --- WEAPON ----------- EM Pulse Gun EM Pulse Gun > --- INVENTORY -------- Ion Engine Light Ion Engine Wheel Wheel Heat Sink Medium Battery Visual Processing Unit Seismic Detector Light Armor Plating Shield Generator Light Assault Rifle EMP Blaster EMP Blaster EMP Blaster EMP Blaster [Rating: 11] Favorites ----------- Power Ion Engine Engine Ion Engine Propulsion Wheel Wheel Wheel Utility High-capacity Storage Unit Device Seismic Detector Storage High-capacity Storage Unit Hackware Hacking Suite Protection Light Armor Plating Weapon EM Pulse Gun Energy Gun EM Pulse Gun Launcher EMP Blaster Build | -11 -10 -10 -10 -9 ------- Run | Yrd Mat Min Exi Min Slots Evolved . | . . . . . Power . | . . . . . Propulsion . | . . . . . Utility . | . . . . . Weapon . | . . . . . Parts Attached 27 | 8 6 . 1 12 Power 3 | 2 . . . 1 Engine 3 | 2 . . . 1 Core . | . . . . . Reactor . | . . . . . Propulsion 10 | 2 3 . . 5 Treads . | . . . . . Leg . | . . . . . Wheel 10 | 2 3 . . 5 Hover . | . . . . . Flight . | . . . . . Utility 7 | 2 2 . 1 2 Device 2 | 1 . . . 1 Storage 3 | 1 1 . 1 . Processor . | . . . . . Hackware 1 | . 1 . . . Protection 1 | . . . . 1 Artifact . | . . . . . Weapon 7 | 2 1 . . 4 Energy Gun 4 | 2 1 . . 1 Energy Cannon . | . . . . . Ballistic Gun . | . . . . . Ballistic Cannon . | . . . . . Launcher 3 | . . . . 3 Special Weapon . | . . . . . Impact Weapon . | . . . . . Slashing Weapon . | . . . . . Piercing Weapon . | . . . . . Special Melee Weapon . | . . . . . Unidentified Prototypes . | . . . . . Parts Lost 16 | . 2 . . 14 Power 2 | . . . . 2 Propulsion 6 | . 1 . . 5 Utility 2 | . . . . 2 Weapon 6 | . 1 . . 5 Highest Loss Streak 9 | . 2 . . 9 To Critical Strikes . | . . . . . Average Backups 10 | 2 9 15 15 9 Power 1 | . 1 2 2 1 Propulsion 1 | . 2 2 2 . Utility 4 | . 3 6 6 6 Weapon 2 | . 2 5 5 1 Tool/Special . | . . . . . Unused Backups 10 | . 2 . 1 7 Power . | . . . . . Propulsion 1 | . 1 . . . Utility 7 | . . . 1 6 Weapon 2 | . 1 . . 1 Tool/Special . | . . . . . Average Slot Usage (%) 82 | . 99 100 100 57 Engine 10 | . 14 14 14 4 Wheel 23 | . 27 28 28 16 Device 4 | . 3 . . 7 Storage 14 | . 14 14 14 14 Hackware 7 | . 10 14 14 . Energy Gun 20 | . 28 28 28 9 Launcher 1 | . . . . 4 Peak Build Rating 11 | 7 11 11 11 11 Average Rating 7 | 5 9 11 11 5 On Entrance 8 | . 7 11 11 11 Avg Prop Armor Cover (%) . | . . . . . Naked Turns . | . . . . . Heaviest Build 51 | 15 30 29 49 51 Greatest Support 26 | 26 26 20 20 20 Greatest Overweight (x) 5 | . 1 1 2 5 Average Overweight (x) 1 | . . 1 1 3 Largest Inventory Capacity 20 | 8 15 15 20 20 Average Capacity 16 | 7 13 15 17 20 Most Carried 17 | 5 15 15 17 17 Average Carried 10 | 2 9 15 15 9 Final Capacity 20 | 8 15 15 20 20 Final Carried 17 | 5 15 15 17 7 Class Distribution -------------------- 100% | Mutant Dominant Class ---------------- Mutant | -10/Materials Mutant | -10/Mines Mutant | -10/Exiles Mutant | -9/Mines Resources | -11 -10 -10 -10 -9 ----------- Run | Yrd Mat Min Exi Min Matter Collected 495 | 280 55 . 15 145 Remotely . | . . . . . Salvage Created 1073 | 146 726 . . 201 Parts 69 | 11 47 . . 11 Haulers Intercepted 2 | . 2 . . . Recyclers Shooed . | . . . . . Parts Field Recycled . | . . . . . Retrieved Matter . | . . . . . Parts Self-Destructed . | . . . . . Prevented . | . . . . . Parts Restored . | . . . . . Kills | -11 -10 -10 -10 -9 ------- Run | Yrd Mat Min Exi Min Combat Hostiles Destroyed 19 | . 11 . . 8 Guns 10 | . 8 . . 2 AOE 9 | . 3 . . 6 Classes Destroyed 13 | 2 8 . . 3 Worker 1 | . 1 . . . Builder 2 | . 2 . . . Tunneler 4 | 4 . . . . Hauler 2 | . 2 . . . Recycler 2 | 1 1 . . . Mechanic 1 | . 1 . . . Operator 1 | . 1 . . . Watcher 3 | . 3 . . . Swarmer 9 | . 6 . . 3 Grunt 6 | . 5 . . 1 Brawler 1 | . . . . 1 Demolisher 1 | . . . . 1 Assembled 2 | . . . . 2 Best Kill Streak 5 | 5 4 . . 3 Combat Bots Only 3 | . 3 . . 3 Max Kills in Single Turn 2 | 1 2 . . 1 Gunslinging 1 | . 1 . . . Exploded 2 | . 2 . . 1 Melee . | . . . . . Uniques/NPCs Destroyed . | . . . . . Combat | -11 -10 -10 -10 -9 -------- Run | Yrd Mat Min Exi Min Hostile Shots Fired 82 | . 31 . . 51 Missed 24 | . 11 . . 13 Hits 58 | . 20 . . 38 Melee 2 | . . . . 2 Projectile 56 | . 20 . . 36 AOE 7 | . . . . 7 Critical Strikes 2 | . 1 . . 1 Damage Taken 1114 | 22 214 . . 878 Core 263 | 22 28 . . 213 Absorbed by Shields 31 | . . . . 31 Core Remaining (%) 91 | 91 . . . . Volleys Fired 77 | 7 44 . . 26 Largest 2 | 2 2 . . 2 Hottest 80 | 80 80 . . 73 Shots Fired 131 | 14 88 . . 29 Gun 118 | 14 88 . . 16 Cannon . | . . . . . Launcher 13 | . . . . 13 Special . | . . . . . Kinetic . | . . . . . Thermal . | . . . . . Explosive . | . . . . . Electromagnetic 131 | 14 88 . . 29 Robot Hit Streak 10 | 7 9 . . 10 Robot Miss Streak 8 | 3 8 . . 4 Penetration Max . | . . . . . Secondary Targets 2 | . 2 . . . Max Gunslinging Chain 1 | . 1 . . . Shots Hit Robots 70 | 8 47 . . 15 Core Hits 40 | 5 24 . . 11 Critical Kills . | . . . . . Critical Parts Destroyed . | . . . . . Critical Strikes 2 | . 2 . . . Corrupt 2 | . 2 . . . Melee Attacks . | . . . . . Impact . | . . . . . Slashing . | . . . . . Piercing . | . . . . . Sneak Attacks . | . . . . . Combat Hostiles . | . . . . . Follow-up Attacks . | . . . . . Damage Inflicted 1528 | 150 959 . . 419 Guns 908 | 106 710 . . 92 Cannons . | . . . . . Explosions 620 | 44 249 . . 327 Melee . | . . . . . Ramming . | . . . . . Kinetic . | . . . . . Thermal 293 | 44 249 . . . Explosive . | . . . . . Electromagnetic 1235 | 106 710 . . 419 Impact . | . . . . . Slashing . | . . . . . Piercing . | . . . . . Highest Corruption 10 | . 2 2 2 10 Average Corruption 3 | . 2 2 2 4 Corruption Purged . | . . . . . Corruption Blocked . | . . . . . Effects 18 | . . . 4 14 Message Errors 2 | . . . . 2 Matter Fused 2 | . . . 1 1 Heat Flow Errors 5 | . . . 2 3 Energy Discharges 6 | . . . 1 5 Parts Rejected 1 | . . . . 1 Data Loss (minor) 1 | . . . . 1 Misfires 1 | . . . . 1 Overload Shots . | . . . . . Overflow Damage 58 | . 24 . . 34 Projectiles . | . . . . . Explosions 58 | . 24 . . 34 Melee . | . . . . . Knockbacks . | . . . . . Impact . | . . . . . Kinetic . | . . . . . Secondary . | . . . . . Self-Inflicted Damage 238 | 22 . . . 216 Shots 14 | 1 . . . 13 Rammed . | . . . . . Targets Rammed . | . . . . . Kicked . | . . . . . Crushed . | . . . . . Highest Temperature 198 | 54 135 . 150 198 Average Temperature 45 | 23 42 . 76 62 Received Heat Transfer 228 | . 90 . . 138 Siege Activations . | . . . . . Martial Activations . | . . . . . Shielding Activations . | . . . . . Robots Disrupted . | . . . . . Combat Hostiles . | . . . . . Robots Corrupted 1 | . 1 . . . Combat Hostiles . | . . . . . Parts Fried 3 | . 3 . . . Impact Corruptions . | . . . . . Robots Melted . | . . . . . Combat Hostiles . | . . . . . Parts Melted . | . . . . . Heat Transferred 200 | 50 150 . . . Parts Sabotaged . | . . . . . Parts Stolen . | . . . . . Parts Stripped . | . . . . . Power Chain Reactions 7 | 1 3 . . 3 Alert | -11 -10 -10 -10 -9 ------- Run | Yrd Mat Min Exi Min Maximum Alert Level . | . . . . . Low Security (%) 100 | 100 100 100 . 100 Level 1 . | . . . . . Level 2 . | . . . . . Level 3 . | . . . . . Level 4 . | . . . . . Level 5 . | . . . . . High Security . | . . . . . Max Security . | . . . . . Peak Influence 141 | 15 141 40 . 92 Initial 40 | . . 40 . . Average 38 | 3 67 37 . 19 Influence Increases 641 | 25 376 . . 240 Destroy 0b10 Robot/C 360 | . 220 . . 140 Destroy 0b10 Robot/NC 80 | 25 55 . . . Destroy Leader 70 | . 50 . . 20 Allied During Kill 2 | . . . . 2 Successful Hack 13 | . 13 . . . Disable Machine 30 | . 15 . . 15 Destroy Structure 26 | . 8 . . 18 Lose Combat Pursuer 60 | . 15 . . 45 Influence Decreases 635 | 25 270 76 30 234 Entered New Map 96 | . . 66 30 . Time Decay 444 | 25 250 10 . 159 Lost Part 60 | . 20 . . 40 Lost Ally 35 | . . . . 35 Squads Dispatched 1 | . 1 . . . Investigation . | . . . . . Extermination . | . . . . . Reinforcement 1 | . 1 . . . Assault . | . . . . . Garrison . | . . . . . Intercept . | . . . . . Searches Triggered . | . . . . . Construction Impeded . | . . . . . Haulers Reinforced . | . . . . . Active Scanning Responses . | . . . . . Cargo Convoy Interrupts . | . . . . . Stealth | -11 -10 -10 -10 -9 --------- Run | Yrd Mat Min Exi Min Distress Signals 1 | . 1 . . . Communications Jammed . | . . . . . Distress Signals . | . . . . . Times Spotted 33 | . 18 . . 15 Peak Tracking Total 6 | . 5 . . 6 Tactical Retreats 3 | . 1 . . 2 Traps | -11 -10 -10 -10 -9 ------- Run | Yrd Mat Min Exi Min Traps Triggered 1 | . 1 . . . Indirectly . | . . . . . Trap Hack Attempts . | . . . . . Triggered . | . . . . . Disarmed . | . . . . . Reprogrammed . | . . . . . Reused . | . . . . . Traps Extracted . | . . . . . Installed . | . . . . . Triggered . | . . . . . Machines | -11 -10 -10 -10 -9 ---------- Run | Yrd Mat Min Exi Min Machines Disabled 2 | . 1 . . 1 Max in Single Turn 1 | . 1 . . 1 Machines Repaired . | . . . . . Machines Dismantled . | . . . . . Machines Sabotaged . | . . . . . Overloaded Fab Kills . | . . . . . Hacking | -11 -10 -10 -10 -9 --------- Run | Yrd Mat Min Exi Min Machines Accessed 10 | . 8 1 1 . Terminals 6 | . 6 . . . Fabricators . | . . . . . Repair Stations . | . . . . . Recycling Units 2 | . 2 . . . Scanalyzers . | . . . . . Garrison Access . | . . . . . Total Hacks 52 | . 28 1 23 . Successful 40 | . 16 1 23 . Failed 11 | . 11 . . . Catastrophic . | . . . . . Database Lockouts 1 | . 1 . . . Manual 26 | . 26 . . . Terminals 20 | . 20 . . . Fabricators . | . . . . . Repair Stations . | . . . . . Recycling Units 8 | . 8 . . . Scanalyzers . | . . . . . Garrison Access . | . . . . . Terminal Hacks 29 | . 5 1 23 . Record 23 | . . . 23 . Part Schematic 1 | . 1 . . . Robot Analysis 2 | . 2 . . . Open Door 1 | . . 1 . . Terminal Index 1 | . 1 . . . Registered Components 1 | . 1 . . . Fabricator Hacks . | . . . . . Repair Station Hacks . | . . . . . Recycling Unit Hacks 1 | . 1 . . . Retrieve Components 1 | . 1 . . . Scanalyzer . | . . . . . Garrison Access Hacks . | . . . . . Unauthorized Hacks 10 | . 10 . . . Terminals 6 | . 6 . . . Botnet 6 | . 6 . . . Fabricators . | . . . . . Repair Stations . | . . . . . Recycling Units 4 | . 4 . . . Reject 2 | . 2 . . . Mask 2 | . 2 . . . Scanalyzers . | . . . . . Garrison Access . | . . . . . Data Cores Recovered 1 | . 1 . . . Used . | . . . . . Hacking Detections 6 | . 6 . . . Full Trace Events . | . . . . . Feedback Events . | . . . . . Feedback Blocked . | . . . . . Robot Schematics Acquired . | . . . . . Robots Built . | . . . . . Authchips . | . . . . . Time . | . . . . . Total Robot Build Rating . | . . . . . Part Schematics Acquired 1 | . 1 . . . Parts Built . | . . . . . Authchips . | . . . . . Time . | . . . . . Total Part Build Rating . | . . . . . Part Studies Acquired . | . . . . . Parts Repaired . | . . . . . Time . | . . . . . Parts Recycled . | . . . . . Recycled Matter . | . . . . . Retrieved Matter . | . . . . . Retrieved Components 1 | . 1 . . . Parts Scanalyzed . | . . . . . Part Schematics Acquired . | . . . . . Parts Damaged . | . . . . . Bothacking | -11 -10 -10 -10 -9 ------------ Run | Yrd Mat Min Exi Min Used RIF Installer . | . . . . . Robots Hacked . | . . . . . Non-combat . | . . . . . Combat . | . . . . . Robot Hacks Applied . | . . . . . Relay Couplers Released . | . . . . . Fabnet Peak Effective % . | . . . . . Robots Rewired . | . . . . . Allies Hacked . | . . . . . Hacks Repelled . | . . . . . Allies | -11 -10 -10 -10 -9 -------- Run | Yrd Mat Min Exi Min Total Allies 2 | . . . . 2 Largest Group 2 | . . . . 2 Highest-Rated Group 41 | . . . . 41 Highest-Rated Ally 31 | . . . . 31 Total Orders . | . . . . . Ally Attacks 6 | . . . . 6 Total Damage 85 | . . . . 85 Kills 1 | . . . . 1 Allies Corrupted . | . . . . . Allies Melted . | . . . . . Intel | -11 -10 -10 -10 -9 ------- Run | Yrd Mat Min Exi Min Active Infowar (turns) 348 | 15 147 . . 186 Seismic 348 | 15 147 . . 186 Robot Analysis Total 2 | . 2 . . . Derelict Logs Recovered 1 | . . . . 1 Drone Launches . | . . . . . Drone Recoveries . | . . . . . Exploration | -11 -10 -10 -10 -9 ------------- Run | Yrd Mat Min Exi Min Turns Passed 1783 | 109 587 27 371 689 Spaces Moved 1295 | 78 431 29 357 400 Core 1 | 1 . . . . Treads . | . . . . . Legs . | . . . . . Wheels 1294 | 77 431 29 357 400 Hover . | . . . . . Flight . | . . . . . Fastest Speed 50 | 50 80 95 95 110 Average Speed 109 | 90 93 95 102 138 Slowest Speed 155 | 100 95 95 110 155 Overloaded Moves . | . . . . . Propulsion Burnouts . | . . . . . Robots Hopped . | . . . . . Potential Cave-ins . | . . . . . Cave-ins Triggered . | . . . . . Exploration Rate (%) 45 | 3 90 11 75 47 Regions Visited 4 Branch Regions 3 Pre-discovered Areas 1 | . . . 1 . Known Exits Taken . | . . . . . Unknown Exits Taken 4 | 1 1 1 1 . Scrap Searched . | . . . . . Spaces Dug . | . . . . . Terrain Destroyed 32 | 4 8 . . 20 Melee . | . . . . . Projectile . | . . . . . AOE 32 | 4 8 . . 20 Terrain Rammed . | . . . . . Walls Destroyed . | . . . . . Machines Disabled . | . . . . . Actions | -11 -10 -10 -10 -9 --------- Run | Yrd Mat Min Exi Min Total 1525 | 98 528 28 362 509 Wait 95 | 2 29 . . 64 Move 1291 | 77 430 28 356 400 Hop . | . . . . . Pick Up 24 | 4 14 . 3 3 Fast Attach 10 | 7 . . . 3 Attach 12 | . 2 . . 10 Detach . | . . . . . Swap 7 | 1 4 . 1 1 Drop 9 | . 5 . 2 2 Fire 77 | 7 44 . . 26 Melee . | . . . . . Ram . | . . . . . Kick . | . . . . . Crush . | . . . . . Escape Stasis . | . . . . . Rewire . | . . . . . Trap . | . . . . . Miscellaneous . | . . . . . Route ------- -11/Scrapyard -10/Materials (discovered 4 exits: [*Mat x2] / *Min / [*Sub]) -10/Mines -10/Exiles (discovered 2 exits: [*Min x2]) -9/Mines History --------- Turn | Location | Event 17 | -11/Scrapyard | Discovered new exit (range 15) 110 | -11/Scrapyard | Entered Materials 316 | -10/Materials | Build established: Mutant 388 | -10/Materials | Discovered new exit (range 10) 427 | -10/Materials | Discovered new exit (range 9) 438 | -10/Materials | Central database locked down 614 | -10/Materials | Discovered new exit (range 3) 656 | -10/Materials | Discovered new exit (range 12) 697 | -10/Materials | Entered Mines 705 | -10/Mines | Found the Drone Emporium 720 | -10/Mines | Deemed a non-threat by the Exiles lab entrance 720 | -10/Mines | Discovered new exit (range 5) 724 | -10/Mines | Entered Exiles 740 | -10/Exiles | Discovered new exit (range 15) 748 | -10/Exiles | Met 8R-AWN 763 | -10/Exiles | Met EX-HEX 789 | -10/Exiles | Met EX-BIN 854 | -10/Exiles | Met EX-DEC 929 | -10/Exiles | Visited The Gauntlet 1003 | -10/Exiles | Learned location of Zion (-6) 1084 | -10/Exiles | Discovered new exit (range 12) 1095 | -10/Exiles | Entered Mines 1096 | -9/Mines | Assembled infested the area 1096 | -9/Mines | Met a Derelict bent on vengeance 1121 | -9/Mines | Core integrity fell below 50% 1177 | -9/Mines | Lost 9 parts (1p3n1u4w) 1242 | -9/Mines | Learned Materials terminal intel 1568 | -9/Mines | Core integrity fell below 20% 1606 | -9/Mines | System corruption reached 10% 1643 | -9/Mines | Lost 4 parts (2n1u1w) 1784 | -9/Mines | Destroyed self with EMP Blaster Last Messages --------------- 01619_ System corrupted: Energy discharge (-5). 01626_ Acquired 20 matter. 01636_ System corrupted: Energy discharge (-50). 01652_ System corrupted: Energy discharge (-69). 01670_ System corrupted: Heat flow error (+147). 01683_ Acquired 40 matter. 01690_ System corrupted: FCS attempts to trigger EMP Blaster. 01690_ System corrupted: EMP Blaster misfires. 01692_ Acquired 3 matter. 01706_ QGM,ZDI= H5CSLYZHUEK0MR2R 01734_ System corrupted: Energy discharge (-60). 01748_ Acquired Seismic Detector. 01753_ System corrupted: Matter fused (-6). 01760_ Extracted 7 matter. 01765_ Acquired Wheel. 01770_ Acquired 10 matter. 01773_ Acquired Ion Engine. 01781_ Chain reaction triggered in Ion Engine. 01783_ Dropped Lrg. Battery. 01784_ Extracted 78 energy. Map ----- +----------------------------------------------------+ | ?????????????????????????????????????# | | ???????????????????????????#######???# | | ??????????????????????????## #???# / | | ?????????????????????????## #????# """ " [% | | ?????????????????????????# #?????# """ %= | | ?????????????????????????# #??????# """ " =! | | ????????????????????????## #???????# = | | ??????????????????????### #???????########## | | ???????????????######## ##???????????????#! | | ???????????????# #???????????????# | | ???????????????# #???????????????# | | ???????????????# ##### #???????????????# | | ???????????????# #???##### ##??????????????# | | ???????????????# #???????## #####??????????# | | ???????????????# ########## ##?????????# | | ???????????????# ##= ! ##???###### | | ???????????????# ## ####### ##??# | | ???????????????# ## *#?????#### #### | | ??????????????## ## #????????## #### | | ??#####???????# ## #?????????#### #??? | | ?## ##??????# ## *#????????????##########??? | | ?# #??????# ####! #???#######??????????????? | | ?# #???#### #??# #???# #??????????????? | | ?## #??## #??# !##### ####???????????? | | ??# ##??# #??#*% ; ## """ % #???????? | | ??# ##???# ####??# @a % """ #???????? | | ??# ###### #?????# ## """ #####%=#???????? | | ??# #?????# #### #??????????????? | | ??# ! #????## ##?#######??????????????? | | ??# ! #???## #??????????????????????? | | ??# ! #???# #??????????????????????? | | ??# !! #???# ##??????????????????????? | | ??## #??## #???????????????????????? | | ???### #???### ##########??????????????? | | ?????## ##?????## ###????????????? | | ??????## ####???????# #######" " ###??????????? | | ???????####??????????# #?????#" "*##?????????? | | ?????????????????????# #?????## ==[#?????????? | | ?????????????????????# ??????#" "%%#?????????# | | ?????????????????????###??????### ##=#?????????# | | ?????????????????????????## ######## ####??????# | | ?????????????????????????# #### #?# | | ?????????????????????????# #?? | | ?????????????????????????# ######### #####?? | | ???????????????????????????????????# ####### | | ???????????????????????????????????## # ## | | ????????????????????????????????????### ## | | ??????????????????????????????????????# | | ?????????????????????????????????????## | | ?????????????????????????????????????# ! | +----------------------------------------------------+ Best States ------------- Heat Dissipation 25 Energy Generation 10 Energy Capacity 250 Matter Stores 300 Matter Capacity 300 Sight Range 16 Terrain Scan Density 10 Evasion (%) 44 Offensive Hacking 10 Item Schematics ----------------- Huge Storage Unit | -10/Materials | Hacked Robot Schematics ------------------ None Fabricated ------------ Nothing Repaired ---------- Nothing Studied --------- None Alien Tech Used ----------------- None Achievements -------------- None Challenges ------------ None Game ------ Seed SegregatorMicroNeutralizer Manual? 0 Play Time 00:16:50 Cumulative 180.7 hours Start 2026.07.10 @ 14:24:39 End 2026.07.10 @ 14:40:44 Sessions 1 Manual Loads 0 Difficulty Rogue Special Mode None Game No. 247 Rogue 247 Adventurer 0 Explorer 0 Win Type - Total 3 Types 3/0/0/0/0/0/0/0/0/0 Lore% 77 Gallery% 57 Achievement% 43 Wizard Run 0 Options --------- Layout 0 ASCII 0 Keyboard 0 Movement Numpad Keybinds 0 Fullscreen 1 Font 18/Terminus Map View 76x50 Zoom Use 0% Tactical HUD 1 Map Filters NONE Filters NONE Steam 1 RUN: f96be48e-3ccf-4bb6-933d-4c696fdf3b92